[Event "FIDE World Rapid Chess Championship 2021"]
[White "Kobalia, Mikhail"]
[Black "Wieczorek, Oskar"]
[WhiteFideId "4119150"]
[BlackFideId "1133950"]
[WhiteElo "2543"]
[BlackElo "2367"]
[Result "1-0"]
[Round "12"]
[TimeControl "900+10"]
[Date "2021.12.28"]
[WhiteClock "0:03:44"]
[BlackClock "0:00:17"]

1. e4 {[%clk 0:15:27]}  c5 {[%clk 0:15:19]} 2. Nf3 {[%clk 0:15:27]}  g6 {[%clk 0:15:19]} 3. d4 {[%clk 0:15:27]}  cxd4 {[%clk 0:15:28]} 4. Nxd4 {[%clk 0:15:27]}  Nc6 {[%clk 0:15:28]} 5. c4 {[%clk 0:13:39]}  Nf6 {[%clk 0:16:24]} 6. Nc3 {[%clk 0:13:39]}  d6 {[%clk 0:16:24]} 7. Be2 {[%clk 0:13:39]}  Nxd4 {[%clk 0:16:24]} 8. Qxd4 {[%clk 0:13:39]}  Bg7 {[%clk 0:16:24]} 9. Bg5 {[%clk 0:13:39]}  O-O {[%clk 0:16:24]} 10. Qe3 {[%clk 0:13:39]}  Be6 {[%clk 0:16:24]} 11. O-O {[%clk 0:13:39]}  Qb6 {[%clk 0:16:24]} 12. Rab1 {[%clk 0:12:31]}  Qxe3 {[%clk 0:16:33]} 13. Bxe3 {[%clk 0:09:26]}  a6 {[%clk 0:14:21]} 14. Rfc1 {[%clk 0:09:34]}  Rfc8 {[%clk 0:14:21]} 15. b3 {[%clk 0:09:34]}  Nd7 {[%clk 0:14:21]} 16. Nd5 {[%clk 0:09:34]}  Kf8 {[%clk 0:11:23]} 17. Bg5 {[%clk 0:09:30]}  f6 {[%clk 0:11:23]} 18. Be3 {[%clk 0:09:30]}  f5 {[%clk 0:11:23]} 19. Bg5 {[%clk 0:09:31]}  Bxd5 {[%clk 0:08:40]} 20. exd5 {[%clk 0:08:23]}  Bd4 {[%clk 0:08:40]} 21. Rd1 {[%clk 0:08:23]}  Ba7 {[%clk 0:08:40]} 22. Kf1 {[%clk 0:08:23]}  Kf7 {[%clk 0:08:40]} 23. Rb2 {[%clk 0:08:32]}  Nf6 {[%clk 0:05:26]} 24. Bd3 {[%clk 0:08:32]}  Rc7 {[%clk 0:04:07]} 25. Re1 {[%clk 0:07:27]}  Bd4 {[%clk 0:04:07]} 26. Rbe2 {[%clk 0:06:12]}  Bc3 {[%clk 0:02:44]} 27. Rb1 {[%clk 0:06:12]}  Be5 {[%clk 0:02:44]} 28. g3 {[%clk 0:06:12]}  h6 {[%clk 0:01:15]} 29. Bd2 {[%clk 0:05:20]}  h5 {[%clk 0:01:15]} 30. Ba5 {[%clk 0:05:20]}  Rd7 {[%clk 0:01:15]} 31. Bb6 {[%clk 0:05:20]}  f4 {[%clk 0:01:15]} 32. Kg2 {[%clk 0:05:20]}  h4 {[%clk 0:01:15]} 33. gxf4 {[%clk 0:04:42]}  Bxf4 {[%clk 0:00:47]} 34. h3 {[%clk 0:04:42]}  Rh8 {[%clk 0:00:47]} 35. Re6 {[%clk 0:04:42]}  Rh5 {[%clk 0:00:47]} 36. Kf3 {[%clk 0:04:42]}  Bh2 {[%clk 0:00:47]} 37. Rh1 {[%clk 0:04:42]}  Be5 {[%clk 0:00:17]} 38. Rg1 {[%clk 0:03:44]}  g5 {[%clk 0:00:17]} 39. Bf5 {[%clk 0:03:44]}  Rh6 {[%clk 0:00:17]} 40. Rxg5 {[%clk 0:03:44]}  Nh7 {[%clk 0:00:17]} 41. Rxh6 {[%clk 0:03:44]}  Nxg5+ {[%clk 0:00:17]} 42. Kg4 {[%clk 0:03:44]} 1-0


[Site "http://www.Chess.com"]

[Event "FIDE World Rapid Chess Championship 2021"]
[White "Gagunashvili, Merab"]
[Black "Faizrakhmanov, Ramil"]
[WhiteFideId "13601652"]
[BlackFideId "24103209"]
[WhiteElo "2538"]
[BlackElo "2461"]
[Result "1-0"]
[Round "12"]
[TimeControl "900+10"]
[Date "2021.12.28"]
[WhiteClock "0:00:59"]
[BlackClock "0:00:25"]

1. d4 {[%clk 0:15:29]}  Nf6 {[%clk 0:15:17]} 2. c4 {[%clk 0:15:29]}  e6 {[%clk 0:15:17]} 3. Nc3 {[%clk 0:15:29]}  Bb4 {[%clk 0:15:26]} 4. Qc2 {[%clk 0:15:29]}  c5 {[%clk 0:15:26]} 5. dxc5 {[%clk 0:15:29]}  Qc7 {[%clk 0:15:26]} 6. a3 {[%clk 0:15:29]}  Bxc5 {[%clk 0:15:26]} 7. Nf3 {[%clk 0:15:29]}  a6 {[%clk 0:14:50]} 8. Bg5 {[%clk 0:14:56]}  Be7 {[%clk 0:14:50]} 9. e4 {[%clk 0:14:56]}  d6 {[%clk 0:14:50]} 10. Be2 {[%clk 0:14:56]}  Nbd7 {[%clk 0:14:50]} 11. O-O {[%clk 0:14:56]}  b6 {[%clk 0:14:50]} 12. Nd4 {[%clk 0:14:56]}  Bb7 {[%clk 0:14:50]} 13. Kh1 {[%clk 0:14:56]}  O-O {[%clk 0:14:50]} 14. Rad1 {[%clk 0:14:56]}  Rfe8 {[%clk 0:14:17]} 15. f3 {[%clk 0:14:32]}  Rac8 {[%clk 0:14:17]} 16. a4 {[%clk 0:14:32]}  h6 {[%clk 0:13:54]} 17. Bh4 {[%clk 0:12:23]}  Ne5 {[%clk 0:13:54]} 18. b3 {[%clk 0:12:23]}  Ng6 {[%clk 0:13:54]} 19. Bf2 {[%clk 0:12:23]}  Nf4 {[%clk 0:10:31]} 20. Qd2 {[%clk 0:13:46]}  Nxe2 {[%clk 0:10:31]} 21. Ndxe2 {[%clk 0:13:46]}  Red8 {[%clk 0:10:31]} 22. Qe3 {[%clk 0:13:42]}  Nd7 {[%clk 0:08:27]} 23. Bg3 {[%clk 0:13:42]}  Nc5 {[%clk 0:08:30]} 24. Rb1 {[%clk 0:11:10]}  Bc6 {[%clk 0:08:30]} 25. Rfd1 {[%clk 0:11:10]}  Qb7 {[%clk 0:05:43]} 26. Nd4 {[%clk 0:11:53]}  Be8 {[%clk 0:05:43]} 27. Qe2 {[%clk 0:11:53]}  Bf6 {[%clk 0:05:52]} 28. Qe3 {[%clk 0:09:05]}  Qe7 {[%clk 0:05:07]} 29. Nde2 {[%clk 0:07:20]}  Be5 {[%clk 0:05:07]} 30. Rd2 {[%clk 0:07:20]}  Qf6 {[%clk 0:05:07]} 31. f4 {[%clk 0:07:20]}  Bxc3 {[%clk 0:05:07]} 32. Nxc3 {[%clk 0:07:20]}  Bc6 {[%clk 0:04:20]} 33. Rxd6 {[%clk 0:06:19]}  Rxd6 {[%clk 0:04:20]} 34. e5 {[%clk 0:06:19]}  Rd3 {[%clk 0:03:52]} 35. Qxd3 {[%clk 0:04:23]}  Nxd3 {[%clk 0:03:52]} 36. exf6 {[%clk 0:04:23]}  gxf6 {[%clk 0:03:52]} 37. Rd1 {[%clk 0:04:23]}  Nc5 {[%clk 0:03:52]} 38. Bf2 {[%clk 0:04:23]}  Nxb3 {[%clk 0:01:54]} 39. Bxb6 {[%clk 0:05:18]}  f5 {[%clk 0:01:54]} 40. a5 {[%clk 0:05:18]}  Kf8 {[%clk 0:01:54]} 41. Na2 {[%clk 0:03:12]}  Ke8 {[%clk 0:01:24]} 42. Rd3 {[%clk 0:03:12]}  Ba4 {[%clk 0:01:24]} 43. c5 {[%clk 0:01:28]}  Rc6 {[%clk 0:00:39]} 44. Nb4 {[%clk 0:01:28]}  Rc8 {[%clk 0:00:39]} 45. c6 {[%clk 0:01:28]}  Nxa5 {[%clk 0:00:39]} 46. Bxa5 {[%clk 0:01:28]}  Bxc6 {[%clk 0:00:39]} 47. Nxc6 {[%clk 0:01:28]}  Rxc6 {[%clk 0:00:39]} 48. g3 {[%clk 0:01:28]}  f6 {[%clk 0:00:50]} 49. Rd8+ {[%clk 0:00:59]}  Kf7 {[%clk 0:00:50]} 50. Rd7+ {[%clk 0:00:59]}  Kg6 {[%clk 0:00:50]} 51. Bc7 {[%clk 0:00:59]}  Rc2 {[%clk 0:00:50]} 52. Bd8 {[%clk 0:00:59]}  e5 {[%clk 0:00:50]} 53. Rd6 {[%clk 0:00:59]}  Kh5 {[%clk 0:00:50]} 54. h3 {[%clk 0:00:59]}  exf4 {[%clk 0:00:50]} 55. gxf4 {[%clk 0:00:59]}  Rf2 {[%clk 0:00:50]} 56. Bxf6 {[%clk 0:00:59]}  Rxf4 {[%clk 0:00:50]} 57. Bg7 {[%clk 0:00:59]}  Ra4 {[%clk 0:00:25]} 58. Rxh6+ {[%clk 0:00:59]}  Kg5 {[%clk 0:00:25]} 59. Rd6 {[%clk 0:00:59]}  Kh4 {[%clk 0:00:25]} 60. Rd3 {[%clk 0:00:59]}  Ra2 {[%clk 0:00:25]} 61. Rf3 {[%clk 0:00:59]}  a5 {[%clk 0:00:25]} 62. Bf6+ {[%clk 0:00:59]}  Kh5 {[%clk 0:00:25]} 63. Rxf5+ {[%clk 0:00:59]}  Kg6 {[%clk 0:00:25]} 64. Rf3 {[%clk 0:00:59]}  a4 {[%clk 0:00:25]} 65. Bd4 {[%clk 0:00:59]}  a3 {[%clk 0:00:25]} 66. Rf2 {[%clk 0:00:59]} 1-0


[Site "http://www.Chess.com"]

[Event "FIDE World Rapid Chess Championship 2021"]
[White "Gabuzyan, Hovhannes"]
[Black "Kosakowski, Jakub"]
[WhiteFideId "13303732"]
[BlackFideId "1185080"]
[WhiteElo "2535"]
[BlackElo "2304"]
[Result "0-1"]
[Round "12"]
[TimeControl "900+10"]
[Date "2021.12.28"]
[WhiteClock "0:09:27"]
[BlackClock "0:02:22"]

1. e4 {[%clk 0:15:19]}  c5 {[%clk 0:15:17]} 2. Nf3 {[%clk 0:15:19]}  d6 {[%clk 0:15:17]} 3. d4 {[%clk 0:15:19]}  cxd4 {[%clk 0:15:17]} 4. Nxd4 {[%clk 0:15:19]}  Nf6 {[%clk 0:15:17]} 5. Nc3 {[%clk 0:15:19]}  a6 {[%clk 0:15:17]} 6. Bg5 {[%clk 0:15:19]}  e6 {[%clk 0:15:17]} 7. f4 {[%clk 0:15:19]}  h6 {[%clk 0:15:17]} 8. Bh4 {[%clk 0:15:19]}  Qb6 {[%clk 0:15:17]} 9. Qd2 {[%clk 0:15:19]}  Qxb2 {[%clk 0:15:17]} 10. Rb1 {[%clk 0:15:19]}  Qa3 {[%clk 0:15:17]} 11. e5 {[%clk 0:15:19]}  dxe5 {[%clk 0:15:17]} 12. fxe5 {[%clk 0:15:19]}  Nfd7 {[%clk 0:15:58]} 13. Ne4 {[%clk 0:16:32]}  Qxa2 {[%clk 0:15:58]} 14. Rd1 {[%clk 0:16:32]}  Qd5 {[%clk 0:15:58]} 15. Qe3 {[%clk 0:16:32]}  Qxe5 {[%clk 0:15:58]} 16. Be2 {[%clk 0:16:32]}  Bc5 {[%clk 0:15:58]} 17. Bg3 {[%clk 0:16:32]}  Qd5 {[%clk 0:15:58]} 18. c4 {[%clk 0:16:32]}  Bxd4 {[%clk 0:15:58]} 19. Rxd4 {[%clk 0:16:32]}  Qa5+ {[%clk 0:15:58]} 20. Rd2 {[%clk 0:16:32]}  O-O {[%clk 0:15:58]} 21. O-O {[%clk 0:16:32]}  f5 {[%clk 0:16:21]} 22. Bd6 {[%clk 0:15:25]}  fxe4 {[%clk 0:13:40]} 23. Bxf8 {[%clk 0:11:00]}  Nxf8 {[%clk 0:13:40]} 24. Bg4 {[%clk 0:11:00]}  Nbd7 {[%clk 0:13:40]} 25. Rdf2 {[%clk 0:11:00]}  Qg5 {[%clk 0:09:10]} 26. Qg3 {[%clk 0:11:12]}  h5 {[%clk 0:09:03]} 27. Qd6 {[%clk 0:11:06]}  Nf6 {[%clk 0:09:03]} 28. Bxh5 {[%clk 0:11:06]}  Bd7 {[%clk 0:05:09]} 29. g4 {[%clk 0:10:17]}  e3 {[%clk 0:05:09]} 30. Rg2 {[%clk 0:10:17]}  Bc6 {[%clk 0:05:09]} 31. h4 {[%clk 0:10:17]}  Qxh4 {[%clk 0:03:49]} 32. Rh2 {[%clk 0:09:46]}  Qg5 {[%clk 0:03:49]} 33. Qe7 {[%clk 0:09:46]}  N8h7 {[%clk 0:03:49]} 34. Rd1 {[%clk 0:09:46]}  Nxh5 {[%clk 0:02:22]} 35. Qxe6+ {[%clk 0:09:27]}  Kh8 {[%clk 0:02:22]} 36. Rxh5 {[%clk 0:09:27]}  Qf4 {[%clk 0:02:22]} 0-1


[Site "http://www.Chess.com"]

[Event "FIDE World Rapid Chess Championship 2021"]
[White "Mikhalevski, Victor"]
[Black "Oparin, Grigoriy"]
[WhiteFideId "2801914"]
[BlackFideId "24125890"]
[WhiteElo "2366"]
[BlackElo "2725"]
[Result "0-1"]
[Round "12"]
[TimeControl "900+10"]
[Date "2021.12.28"]
[WhiteClock "0:00:00"]
[BlackClock "0:03:45"]

1. Nf3 {[%clk 0:15:17]}  Nf6 {[%clk 0:15:19]} 2. g3 {[%clk 0:15:17]}  d5 {[%clk 0:15:19]} 3. Bg2 {[%clk 0:15:26]}  g6 {[%clk 0:15:19]} 4. O-O {[%clk 0:15:26]}  Bg7 {[%clk 0:15:19]} 5. d4 {[%clk 0:15:26]}  O-O {[%clk 0:15:19]} 6. c4 {[%clk 0:15:26]}  dxc4 {[%clk 0:15:19]} 7. Na3 {[%clk 0:15:26]}  a5 {[%clk 0:15:19]} 8. Nxc4 {[%clk 0:15:26]}  a4 {[%clk 0:15:19]} 9. Bf4 {[%clk 0:15:43]}  Be6 {[%clk 0:15:09]} 10. Nfe5 {[%clk 0:15:43]}  Bd5 {[%clk 0:15:09]} 11. f3 {[%clk 0:15:43]}  Bxc4 {[%clk 0:15:11]} 12. Nxc4 {[%clk 0:14:04]}  Nd5 {[%clk 0:15:11]} 13. Bc1 {[%clk 0:14:04]}  Nc6 {[%clk 0:15:11]} 14. e3 {[%clk 0:14:04]}  b5 {[%clk 0:13:12]} 15. Na3 {[%clk 0:12:56]}  b4 {[%clk 0:12:26]} 16. Nc4 {[%clk 0:13:03]}  Na5 {[%clk 0:12:26]} 17. Qe2 {[%clk 0:13:03]}  c5 {[%clk 0:12:26]} 18. dxc5 {[%clk 0:13:03]}  a3 {[%clk 0:09:23]} 19. Rd1 {[%clk 0:12:18]}  e6 {[%clk 0:07:49]} 20. Nb6 {[%clk 0:08:16]}  Qc7 {[%clk 0:07:55]} 21. Nxa8 {[%clk 0:07:18]}  Rxa8 {[%clk 0:07:55]} 22. f4 {[%clk 0:05:09]}  Qxc5 {[%clk 0:05:13]} 23. Rb1 {[%clk 0:05:09]}  b3 {[%clk 0:05:13]} 24. Bxd5 {[%clk 0:05:09]}  exd5 {[%clk 0:05:13]} 25. Bd2 {[%clk 0:04:16]}  bxa2 {[%clk 0:04:45]} 26. Ra1 {[%clk 0:01:25]}  axb2 {[%clk 0:04:32]} 27. Rxa2 {[%clk 0:01:25]}  Qc2 {[%clk 0:04:32]} 28. Ra3 {[%clk 0:01:25]}  Bf8 {[%clk 0:03:45]} 29. Rc3 {[%clk 0:00:00]}  b1=Q {[%clk 0:03:45]} 30. Rxb1 {[%clk 0:00:00]}  Qxb1+ {[%clk 0:03:45]} 31. Rc1 {[%clk 0:00:00]}  Qb2 {[%clk 0:03:45]} 0-1


[Site "http://www.Chess.com"]

[Event "FIDE World Rapid Chess Championship 2021"]
[White "Smirin, Ilia"]
[Black "Nevednichy, Vladislav"]
[WhiteFideId "2801990"]
[BlackFideId "1205730"]
[WhiteElo "2663"]
[BlackElo "2425"]
[Result "1-0"]
[Round "12"]
[TimeControl "900+10"]
[Date "2021.12.28"]
[WhiteClock "0:00:58"]
[BlackClock "0:00:44"]

1. e4 {[%clk 0:15:19]}  c5 {[%clk 0:15:00]} 2. Nf3 {[%clk 0:15:19]}  d6 {[%clk 0:15:00]} 3. d4 {[%clk 0:15:19]}  cxd4 {[%clk 0:15:00]} 4. Nxd4 {[%clk 0:15:19]}  Nf6 {[%clk 0:15:00]} 5. Nc3 {[%clk 0:15:19]}  Nc6 {[%clk 0:15:00]} 6. Bg5 {[%clk 0:15:19]}  e6 {[%clk 0:15:00]} 7. Qd2 {[%clk 0:15:19]}  a6 {[%clk 0:15:00]} 8. O-O-O {[%clk 0:15:19]}  Bd7 {[%clk 0:15:00]} 9. f3 {[%clk 0:15:19]}  Be7 {[%clk 0:15:00]} 10. h4 {[%clk 0:15:19]}  h6 {[%clk 0:15:00]} 11. Be3 {[%clk 0:15:19]}  h5 {[%clk 0:15:00]} 12. Nxc6 {[%clk 0:15:19]}  Bxc6 {[%clk 0:15:46]} 13. Ne2 {[%clk 0:15:52]}  d5 {[%clk 0:15:46]} 14. e5 {[%clk 0:15:52]}  Nd7 {[%clk 0:15:46]} 15. f4 {[%clk 0:15:52]}  Nc5 {[%clk 0:15:46]} 16. Nd4 {[%clk 0:15:50]}  g6 {[%clk 0:13:17]} 17. Nxc6 {[%clk 0:15:44]}  bxc6 {[%clk 0:10:44]} 18. Qc3 {[%clk 0:15:44]}  Qb6 {[%clk 0:10:44]} 19. Rh3 {[%clk 0:15:44]}  Rb8 {[%clk 0:10:44]} 20. Bd4 {[%clk 0:13:33]}  Ne4 {[%clk 0:11:18]} 21. Bxb6 {[%clk 0:07:21]}  Nxc3 {[%clk 0:11:18]} 22. Ba7 {[%clk 0:07:21]}  Nxd1 {[%clk 0:09:06]} 23. Bxb8 {[%clk 0:07:15]}  Nf2 {[%clk 0:09:06]} 24. Rb3 {[%clk 0:07:15]}  O-O {[%clk 0:09:06]} 25. Bxa6 {[%clk 0:07:15]}  Bxh4 {[%clk 0:07:39]} 26. Bd6 {[%clk 0:06:43]}  Ra8 {[%clk 0:07:39]} 27. Rb8+ {[%clk 0:06:43]}  Rxb8 {[%clk 0:07:39]} 28. Bxb8 {[%clk 0:06:43]}  Bg3 {[%clk 0:07:13]} 29. a4 {[%clk 0:05:04]}  Bxf4+ {[%clk 0:07:13]} 30. Kb1 {[%clk 0:05:04]}  Ng4 {[%clk 0:05:29]} 31. a5 {[%clk 0:04:33]}  Nxe5 {[%clk 0:02:56]} 32. Bc8 {[%clk 0:04:42]}  g5 {[%clk 0:01:47]} 33. a6 {[%clk 0:03:13]}  Nc4 {[%clk 0:01:47]} 34. a7 {[%clk 0:03:13]}  Nb6 {[%clk 0:01:47]} 35. Bb7 {[%clk 0:02:09]}  h4 {[%clk 0:00:29]} 36. Bxc6 {[%clk 0:02:09]}  f5 {[%clk 0:00:00]} 37. Ka2 {[%clk 0:01:04]}  Be3 {[%clk 0:00:00]} 38. Kb3 {[%clk 0:01:04]}  f4 {[%clk 0:00:00]} 39. Kb4 {[%clk 0:01:04]}  g4 {[%clk 0:00:00]} 40. Bc7 {[%clk 0:01:04]}  Na8 {[%clk 0:00:00]} 41. Bxa8 {[%clk 0:01:04]}  Bxa7 {[%clk 0:00:00]} 42. Bxf4 {[%clk 0:01:04]}  Kf7 {[%clk 0:00:00]} 43. c4 {[%clk 0:01:04]}  dxc4 {[%clk 0:00:00]} 44. Kxc4 {[%clk 0:01:04]}  h3 {[%clk 0:00:00]} 45. gxh3 {[%clk 0:01:04]}  gxh3 {[%clk 0:00:00]} 46. Be4 {[%clk 0:01:04]}  Bg1 {[%clk 0:00:00]} 47. b4 {[%clk 0:01:04]}  Kf6 {[%clk 0:00:00]} 48. Kb5 {[%clk 0:00:58]}  e5 {[%clk 0:00:44]} 49. Bd2 {[%clk 0:00:58]}  Ke7 {[%clk 0:00:44]} 50. Kc6 {[%clk 0:00:58]}  Kd8 {[%clk 0:00:44]} 51. b5 {[%clk 0:00:58]}  Kc8 {[%clk 0:00:44]} 52. Bf5+ {[%clk 0:00:58]}  Kb8 {[%clk 0:00:44]} 53. Bxh3 {[%clk 0:00:58]} 1-0


[Site "http://www.Chess.com"]

[Event "FIDE World Rapid Chess Championship 2021"]
[White "Heberla, Bartlomiej"]
[Black "Erdos, Viktor"]
[WhiteFideId "1115120"]
[BlackFideId "719978"]
[WhiteElo "2437"]
[BlackElo "2601"]
[Result "1-0"]
[Round "12"]
[TimeControl "900+10"]
[Date "2021.12.28"]
[WhiteClock "0:00:46"]
[BlackClock "0:00:19"]

1. e4 {[%clk 0:15:28]}  e5 {[%clk 0:15:19]} 2. Nf3 {[%clk 0:15:28]}  Nc6 {[%clk 0:15:19]} 3. Bb5 {[%clk 0:15:28]}  a6 {[%clk 0:15:28]} 4. Ba4 {[%clk 0:15:28]}  Nf6 {[%clk 0:15:28]} 5. O-O {[%clk 0:15:28]}  b5 {[%clk 0:15:28]} 6. Bb3 {[%clk 0:15:28]}  Bc5 {[%clk 0:15:28]} 7. c3 {[%clk 0:15:57]}  d6 {[%clk 0:15:52]} 8. d4 {[%clk 0:15:57]}  Bb6 {[%clk 0:15:52]} 9. a4 {[%clk 0:15:57]}  Rb8 {[%clk 0:15:52]} 10. a5 {[%clk 0:15:57]}  Ba7 {[%clk 0:15:52]} 11. h3 {[%clk 0:15:57]}  O-O {[%clk 0:15:52]} 12. Be3 {[%clk 0:15:57]}  Nxe4 {[%clk 0:15:52]} 13. Bd5 {[%clk 0:08:39]}  exd4 {[%clk 0:16:50]} 14. cxd4 {[%clk 0:08:39]}  Qe8 {[%clk 0:16:50]} 15. Re1 {[%clk 0:08:39]}  Nf6 {[%clk 0:16:50]} 16. Bg5 {[%clk 0:08:39]}  Nxd5 {[%clk 0:16:50]} 17. Rxe8 {[%clk 0:08:39]}  Rxe8 {[%clk 0:16:50]} 18. Nc3 {[%clk 0:08:39]}  Be6 {[%clk 0:16:50]} 19. Nxd5 {[%clk 0:04:34]}  Bxd5 {[%clk 0:16:42]} 20. Be3 {[%clk 0:04:34]}  Re6 {[%clk 0:16:42]} 21. Nh4 {[%clk 0:04:34]}  Rbe8 {[%clk 0:15:10]} 22. Rc1 {[%clk 0:04:37]}  Nxa5 {[%clk 0:13:04]} 23. Rxc7 {[%clk 0:03:30]}  Bb6 {[%clk 0:13:04]} 24. Rxf7 {[%clk 0:01:40]}  Kxf7 {[%clk 0:09:36]} 25. Qh5+ {[%clk 0:01:40]}  Kf8 {[%clk 0:09:36]} 26. Qxd5 {[%clk 0:01:40]}  Nc4 {[%clk 0:09:36]} 27. Nf5 {[%clk 0:01:40]}  Rf6 {[%clk 0:09:11]} 28. Bg5 {[%clk 0:00:34]}  Rg6 {[%clk 0:09:11]} 29. Nh4 {[%clk 0:00:34]}  Rge6 {[%clk 0:09:11]} 30. b3 {[%clk 0:00:34]}  h6 {[%clk 0:04:07]} 31. bxc4 {[%clk 0:00:31]}  hxg5 {[%clk 0:04:07]} 32. Nf5 {[%clk 0:00:31]}  Rf6 {[%clk 0:04:07]} 33. cxb5 {[%clk 0:00:31]}  axb5 {[%clk 0:04:07]} 34. g4 {[%clk 0:00:31]}  g6 {[%clk 0:02:33]} 35. Nh6 {[%clk 0:00:31]}  Kg7 {[%clk 0:02:33]} 36. Qxg5 {[%clk 0:00:31]}  Re1+ {[%clk 0:02:33]} 37. Kg2 {[%clk 0:00:31]}  Re2 {[%clk 0:02:33]} 38. Nf5+ {[%clk 0:00:31]}  Kf7 {[%clk 0:02:33]} 39. Kf1 {[%clk 0:00:29]}  Rb2 {[%clk 0:02:25]} 40. Nh6+ {[%clk 0:00:29]}  Kg7 {[%clk 0:02:25]} 41. Nf5+ {[%clk 0:00:29]}  Kf7 {[%clk 0:02:25]} 42. Qc1 {[%clk 0:00:29]}  Ra2 {[%clk 0:02:25]} 43. Qb1 {[%clk 0:00:29]}  Rd2 {[%clk 0:02:25]} 44. Qe1 {[%clk 0:00:29]}  gxf5 {[%clk 0:02:25]} 45. Qxd2 {[%clk 0:00:29]}  fxg4 {[%clk 0:02:25]} 46. hxg4 {[%clk 0:00:29]}  Ke6 {[%clk 0:02:25]} 47. Qe2+ {[%clk 0:00:29]}  Kf7 {[%clk 0:00:19]} 48. Qxb5 {[%clk 0:00:46]}  Bd8 {[%clk 0:00:19]} 49. Kg2 {[%clk 0:00:46]}  Rf4 {[%clk 0:00:19]} 50. Qd5+ {[%clk 0:00:46]}  Kg7 {[%clk 0:00:19]} 51. Kg3 {[%clk 0:00:46]} 1-0


[Site "http://www.Chess.com"]

[Event "FIDE World Rapid Chess Championship 2021"]
[White "Jumabayev, Rinat"]
[Black "Dziuba, Marcin"]
[WhiteFideId "13702661"]
[BlackFideId "1112953"]
[WhiteElo "2562"]
[BlackElo "2424"]
[Result "1/2-1/2"]
[Round "12"]
[TimeControl "900+10"]
[Date "2021.12.28"]
[WhiteClock "0:00:34"]
[BlackClock "0:00:12"]

1. d4 {[%clk 0:15:19]}  d5 {[%clk 0:15:19]} 2. Bf4 {[%clk 0:15:19]}  c5 {[%clk 0:15:19]} 3. e3 {[%clk 0:15:19]}  Nc6 {[%clk 0:15:19]} 4. c3 {[%clk 0:15:19]}  cxd4 {[%clk 0:15:19]} 5. exd4 {[%clk 0:15:19]}  Bf5 {[%clk 0:15:19]} 6. Qb3 {[%clk 0:15:19]}  Qd7 {[%clk 0:15:19]} 7. Nf3 {[%clk 0:15:19]}  e6 {[%clk 0:15:19]} 8. Nbd2 {[%clk 0:15:19]}  f6 {[%clk 0:15:08]} 9. h4 {[%clk 0:16:04]}  h5 {[%clk 0:15:08]} 10. Be2 {[%clk 0:16:04]}  Nge7 {[%clk 0:15:08]} 11. O-O {[%clk 0:16:04]}  Bg4 {[%clk 0:14:53]} 12. Rfe1 {[%clk 0:13:48]}  Nf5 {[%clk 0:14:53]} 13. Bd3 {[%clk 0:13:48]}  O-O-O {[%clk 0:14:53]} 14. a4 {[%clk 0:13:48]}  Bd6 {[%clk 0:09:59]} 15. Bxd6 {[%clk 0:12:50]}  Qxd6 {[%clk 0:09:59]} 16. a5 {[%clk 0:12:50]}  Kb8 {[%clk 0:09:59]} 17. Qa3 {[%clk 0:12:50]}  Qxa3 {[%clk 0:09:04]} 18. Rxa3 {[%clk 0:12:35]}  Rhe8 {[%clk 0:09:04]} 19. g3 {[%clk 0:12:35]}  e5 {[%clk 0:09:04]} 20. dxe5 {[%clk 0:11:19]}  fxe5 {[%clk 0:08:17]} 21. Bb5 {[%clk 0:11:19]}  e4 {[%clk 0:08:17]} 22. Nh2 {[%clk 0:09:00]}  Bh3 {[%clk 0:07:19]} 23. a6 {[%clk 0:09:00]}  Nd6 {[%clk 0:07:19]} 24. Be2 {[%clk 0:07:57]}  e3 {[%clk 0:06:32]} 25. fxe3 {[%clk 0:07:57]}  Rxe3 {[%clk 0:06:32]} 26. Kf2 {[%clk 0:07:57]}  Rde8 {[%clk 0:06:32]} 27. Raa1 {[%clk 0:07:57]}  g6 {[%clk 0:06:18]} 28. axb7 {[%clk 0:06:36]}  d4 {[%clk 0:06:18]} 29. Bf3 {[%clk 0:06:36]}  Ne5 {[%clk 0:05:02]} 30. Rxe3 {[%clk 0:05:00]}  dxe3+ {[%clk 0:05:02]} 31. Kxe3 {[%clk 0:05:00]}  Nec4+ {[%clk 0:05:02]} 32. Kf4 {[%clk 0:03:23]}  Nxd2 {[%clk 0:04:47]} 33. Bc6 {[%clk 0:03:23]}  Rf8+ {[%clk 0:04:47]} 34. Kg5 {[%clk 0:03:23]}  Bf5 {[%clk 0:04:47]} 35. Rd1 {[%clk 0:03:23]}  N2e4+ {[%clk 0:04:47]} 36. Kh6 {[%clk 0:03:23]}  Kc7 {[%clk 0:04:26]} 37. Bd5 {[%clk 0:02:05]}  Nxg3 {[%clk 0:04:26]} 38. Ra1 {[%clk 0:02:05]}  Kb8 {[%clk 0:04:26]} 39. Nf3 {[%clk 0:02:05]}  Nxb7 {[%clk 0:03:53]} 40. Ne5 {[%clk 0:02:17]}  Nd8 {[%clk 0:03:53]} 41. Ra6 {[%clk 0:01:35]}  Re8 {[%clk 0:02:14]} 42. Nxg6 {[%clk 0:01:35]}  Be6 {[%clk 0:02:14]} 43. Bf3 {[%clk 0:01:35]}  Bc8 {[%clk 0:02:14]} 44. Rf6 {[%clk 0:01:35]}  Re6 {[%clk 0:00:19]} 45. Rxe6 {[%clk 0:00:18]}  Bxe6 {[%clk 0:00:19]} 46. Nf4 {[%clk 0:00:18]}  Bg4 {[%clk 0:00:19]} 47. Bxg4 {[%clk 0:00:18]}  hxg4 {[%clk 0:00:19]} 48. Kg5 {[%clk 0:00:18]}  Ne4+ {[%clk 0:00:19]} 49. Kxg4 {[%clk 0:00:18]}  Kc7 {[%clk 0:00:19]} 50. h5 {[%clk 0:00:18]}  Kd6 {[%clk 0:00:19]} 51. Kf5 {[%clk 0:00:18]}  Ng3+ {[%clk 0:00:19]} 52. Kf6 {[%clk 0:00:18]}  Nxh5+ {[%clk 0:00:19]} 53. Nxh5 {[%clk 0:00:18]}  a5 {[%clk 0:00:19]} 54. Nf4 {[%clk 0:00:18]}  a4 {[%clk 0:00:19]} 55. Kf5 {[%clk 0:00:18]}  Kc5 {[%clk 0:00:12]} 56. Ke4 {[%clk 0:00:34]}  Kc4 {[%clk 0:00:12]} 57. Nd5 {[%clk 0:00:34]}  Kb3 {[%clk 0:00:12]} 58. Nb6 {[%clk 0:00:34]}  Kxb2 {[%clk 0:00:12]} 59. Nxa4+ {[%clk 0:00:34]}  Kb3 {[%clk 0:00:12]} 1/2-1/2


[Site "http://www.Chess.com"]